fUST/lending_fUST_20260625
["ID","MTS","AMOUNT","RATE_DAILY","PERIOD"]
[426377983,1782336189000,500.0,0.0002878,60]
[426377984,1782336192000,502.95697517,0.0002878,60]
[426377987,1782336196000,500.0,0.0002878,60]
[426377991,1782336201000,500.0,0.0002878,60]
[426377992,1782336201000,500.0,0.0002878,60]
[426377996,1782336208000,500.0,0.0002878,60]
[426377995,1782336208000,467.13075525,0.0002878,60]
[426377997,1782336210000,544.95407695,0.0002878,60]
[426377998,1782336213000,170.09,0.0002878,60]
[426378000,1782336214000,500.0,0.0002878,60]
[426378005,1782336216000,500.0,0.0002878,60]
[426378004,1782336216000,504.02234427,0.0002878,60]
[426378003,1782336216000,500.0,0.0002878,60]
[426378006,1782336217000,169.86,0.0002878,60]
[426378007,1782336218000,503.44238565,0.0002878,60]
[426378008,1782336219000,508.41,0.0002878,60]
[426378010,1782336219000,500.0,0.0002878,60]
[426378015,1782336228000,567.1806428,0.0002878,60]
[426378014,1782336228000,500.0,0.0002878,60]
[426378016,1782336229000,500.0,0.0002878,60]
[426378017,1782336230000,500.0,0.0002878,60]
[426378018,1782336231000,500.0,0.0002878,60]
[426378019,1782336234000,500.0,0.0002878,60]
[426378020,1782336235000,500.0,0.0002878,60]
[426378022,1782336240000,500.0,0.0002878,60]
[426378021,1782336240000,500.0,0.0002878,60]
[426378023,1782336242000,-500.0,0.0002878,11]
[426378024,1782336242000,-500.0,0.0002878,11]
[426378026,1782336242000,-500.0,0.0002878,10]
[426378027,1782336242000,-501.4505137,0.0002878,10]
[426378025,1782336242000,-500.0,0.0002878,11]
[426378028,1782336244000,505.0693532,0.0002878,60]
[426378029,1782336246000,500.0,0.0002878,60]
[426378030,1782336248000,537.59040397,0.0002878,60]
[426378033,1782336249000,500.0,0.0002878,60]
[426378032,1782336249000,504.95837758,0.0002878,60]
[426378035,1782336251000,500.0,0.0002878,60]
[426378037,1782336256000,500.0,0.0002878,60]
[426378038,1782336259000,342.39545924,0.0002878,60]
[426378039,1782336260000,500.0,0.0002878,60]
[426378040,1782336262000,500.0,0.0002878,60]
[426378045,1782336264000,501.73302891,0.0002878,60]
[426378046,1782336265000,500.0,0.0002878,60]
[426378049,1782336275000,500.0,0.0002878,60]
[426378052,1782336281000,500.0,0.0002878,60]
[426378055,1782336287000,503.67575133,0.0002878,60]
[426378056,1782336289000,449.12878181,0.0002878,60]
[426378058,1782336293000,502.39393082,0.0002878,60]
[426378057,1782336293000,500.0,0.0002878,60]
[426378059,1782336295000,500.0,0.0002878,60]
[426378060,1782336296000,562.5982541,0.0002878,60]
[426378062,1782336302000,559.51,0.0002878,60]
[426378066,1782336303000,500.0,0.0002878,60]
[426378064,1782336303000,500.0,0.0002878,60]
[426378068,1782336304000,500.0,0.0002878,60]
[426378067,1782336304000,500.0,0.0002878,60]
[426378070,1782336309000,500.0,0.0002878,60]
[426378071,1782336312000,502.26275153,0.0002878,60]
[426378072,1782336314000,500.0,0.0002878,60]
[426378074,1782336317000,413.66388426,0.0002878,60]
[426378075,1782336320000,500.0,0.0002878,60]
[426378076,1782336322000,502.30344749,0.0002878,60]
[426378077,1782336324000,503.07011726,0.0002878,60]
[426378081,1782336327000,501.49352412,0.0002878,60]
[426378080,1782336327000,568.55,0.0002878,60]
[426378079,1782336327000,500.0,0.0002878,60]
[426378082,1782336331000,502.01767212,0.0002878,60]
[426378083,1782336332000,501.84000062,0.0002878,60]
[426378084,1782336334000,500.0,0.0002878,60]
[426378085,1782336339000,536.51666801,0.0002878,60]
[426378088,1782336341000,500.0,0.0002878,60]
[426378089,1782336342000,500.0,0.0002878,60]
[426378090,1782336344000,500.0,0.0002878,60]
[426378094,1782336347000,299.79,0.0002878,60]
[426378093,1782336347000,500.0,0.0002878,60]
[426378095,1782336348000,500.0,0.0002878,60]
[426378096,1782336349000,507.29827419,0.0002878,60]
[426378099,1782336352000,501.50544102,0.0002878,60]
[426378100,1782336353000,500.0,0.0002878,60]
[426378102,1782336356000,500.0,0.0002878,60]
[426378101,1782336356000,500.0,0.0002878,60]
[426378105,1782336358000,-361.82271408,0.0002309,2]
[426378103,1782336358000,-205.62960727,0.00017454,2]
[426378104,1782336358000,-73.92752158,0.00017808,2]
[426378108,1782336360000,500.0,0.0002878,60]
[426378107,1782336360000,500.0,0.0002878,60]
[426378106,1782336360000,519.88027305,0.0002878,60]
[426378110,1782336361000,511.61818935,0.0002878,60]
[426378109,1782336361000,500.0,0.0002878,60]
[426378111,1782336362000,500.0,0.0002878,60]
[426378113,1782336365000,502.72095923,0.0002878,60]
[426378115,1782336367000,200.0,0.0002878,60]
[426378116,1782336368000,500.0,0.0002878,60]
[426378117,1782336370000,157.13420102,0.0002878,60]
[426378118,1782336371000,500.0,0.0002878,60]
[426378119,1782336372000,500.0,0.0002878,60]
[426378136,1782336380000,500.0,0.0002878,60]
[426378141,1782336382000,500.0,0.0002878,60]
[426378142,1782336386000,507.51890752,0.0002878,60]
[426378143,1782336393000,500.0,0.0002878,60]
[426378144,1782336395000,501.7050315,0.0002878,60]
[426378146,1782336396000,500.0,0.0002878,60]
[426378145,1782336396000,500.0,0.0002878,60]
[426378147,1782336397000,500.0,0.0002878,60]
[426378148,1782336401000,511.99206405,0.0002878,60]
[426378149,1782336405000,500.0,0.0002878,60]
[426378151,1782336408000,507.42844697,0.0002878,60]
[426378156,1782336422000,500.0,0.0002878,60]
[426378179,1782336433000,-184.7881089,0.00033549,2]
[426378173,1782336433000,-1000.0,0.00030136,2]
[426378178,1782336433000,-7392.4557694,0.00031051,2]
[426378177,1782336433000,-5417.7225286,0.00031025,120]
[426378176,1782336433000,-172.0,0.00030747,120]
[426378174,1782336433000,-1000.0,0.00030195,30]
[426378175,1782336433000,-231.322208,0.00030697,2]
[426378172,1782336433000,-979.0963108,0.00029304,2]
[426378170,1782336433000,-300.0,0.00028779,2]
[426378161,1782336433000,-240.25923583,0.0002309,2]
[426378169,1782336433000,-1000.0,0.00028767,2]
[426378168,1782336433000,-1000.0,0.000287,2]
[426378167,1782336433000,-211.16819282,0.0002865,2]
[426378165,1782336433000,-197.70635146,0.000286,2]
[426378166,1782336433000,-197.70635144,0.000286,2]
[426378164,1782336433000,-160.0,0.00028548,2]
[426378163,1782336433000,-1000.0,0.000282,2]
[426378162,1782336433000,-250.0,0.00023331,2]
[426378180,1782336433000,-201.16530992,0.00033549,2]
[426378171,1782336433000,-1096.0079818,0.0002926,2]
[426378183,1782336433000,-237.30758043,0.00034519,2]
[426378202,1782336433000,-1000.0,0.00035167,2]
[426378182,1782336433000,-402.33061983,0.00034519,2]
[426378181,1782336433000,-369.57621781,0.00034519,2]
[426378204,1782336433000,-500.0,0.00035596,2]
[426378203,1782336433000,-6926.56696047,0.00035496,2]
[426378201,1782336433000,-474.61516085,0.00035166,2]
[426378200,1782336433000,-196.85540125,0.00035166,2]
[426378197,1782336433000,-200.84402606,0.00035166,2]
[426378198,1782336433000,-215.93953315,0.00035166,2]
[426378194,1782336433000,-235.41220442,0.00035166,2]
[426378195,1782336433000,-182.18058809,0.00035166,2]
[426378196,1782336433000,-554.36432671,0.00035166,2]
[426378199,1782336433000,-603.49592975,0.00035166,2]
[426378192,1782336433000,-274.19943637,0.00035166,7]
[426378193,1782336433000,-221.70466876,0.00035166,2]
[426378186,1782336433000,-167.32775292,0.00035165,2]
[426378185,1782336433000,-225.85456997,0.00035049,2]
[426378187,1782336433000,-174.581,0.00035165,41]
[426378184,1782336433000,-250.0,0.00034968,2]
[426378189,1782336433000,-500.0,0.00035166,7]
[426378191,1782336433000,-500.0,0.00035166,7]
[426378190,1782336433000,-500.0,0.00035166,7]
[426378188,1782336433000,-418.80433368,0.00035166,7]
[426378217,1782336434000,-337.29574283,0.00035597,2]
[426378226,1782336434000,-327.79874366,0.00035597,2]
[426378225,1782336434000,-393.71080251,0.00035597,2]
[426378224,1782336434000,-386.8411255,0.00035597,2]
[426378222,1782336434000,-368.46707068,0.00035597,2]
[426378223,1782336434000,-431.8790663,0.00035597,2]
[426378221,1782336434000,-312.40832266,0.00035597,2]
[426378220,1782336434000,-306.92879066,0.00035597,2]
[426378219,1782336434000,-374.58034077,0.00035597,2]
[426378218,1782336434000,-324.81484229,0.00035597,2]
[426378216,1782336434000,-319.13611164,0.00035597,2]
[426378205,1782336434000,-381.38062526,0.00035596,2]
[426378215,1782336434000,-739.15243561,0.00035597,2]
[426378213,1782336434000,-470.82440885,0.00035597,2]
[426378212,1782336434000,-443.40933751,0.00035597,2]
[426378211,1782336434000,-346.94411079,0.00035596,2]
[426378209,1782336434000,-334.65550583,0.00035596,2]
[426378210,1782336434000,-393.55716993,0.00035596,2]
[426378208,1782336434000,-340.98319319,0.00035596,2]
[426378207,1782336434000,-401.68805212,0.00035596,2]
[426378206,1782336434000,-362.29433056,0.00035596,2]
[426378227,1782336434000,-711.92274128,0.00035597,2]
[426378214,1782336434000,-364.36117618,0.00035597,2]
[426378229,1782336434000,-1000.0,0.00035692,2]
[426378249,1782336434000,-1005.0,0.00037411,14]
[426378230,1782336434000,-500.0,0.0003587,2]
[426378228,1782336434000,-1000.0,0.0003561,2]
[426378252,1782336434000,-1005.0,0.00037411,14]
[426378251,1782336434000,-1005.0,0.00037411,14]
[426378250,1782336434000,-1005.0,0.00037411,14]
[426378253,1782336434000,-1005.0,0.00037411,14]
[426378248,1782336434000,-1005.0,0.00037411,14]
[426378247,1782336434000,-1005.0,0.00037411,14]
[426378245,1782336434000,-1005.0,0.00037411,14]
[426378244,1782336434000,-1880.04963349,0.00037175,2]
[426378242,1782336434000,-676.81786805,0.00037175,2]
[426378243,1782336434000,-1203.23176543,0.00037175,2]
[426378246,1782336434000,-1005.0,0.00037411,14]
[426378239,1782336434000,-156.59,0.00037093,2]
[426378241,1782336434000,-376.0099267,0.00037175,2]
[426378233,1782336434000,-500.0,0.00036144,2]
[426378231,1782336434000,-214.48557534,0.00035878,2]
[426378235,1782336434000,-500.0,0.00036418,2]
[426378234,1782336434000,-166.0,0.000364,14]
[426378232,1782336434000,-923.94054452,0.00036028,2]
[426378238,1782336434000,-500.0,0.00036966,2]
[426378237,1782336434000,-500.0,0.00036692,2]
[426378240,1782336434000,-267.7103083,0.00037165,2]
[426378236,1782336434000,-1000.0,0.0003645,2]
[426378267,1782336435000,-500.0,0.00037904,60]
[426378273,1782336435000,-174.61,0.000388,120]
[426378274,1782336435000,-175.12445426,0.00039,120]
[426378272,1782336435000,-174.61,0.000383,120]
[426378271,1782336435000,-300.35494551,0.00038,120]
[426378269,1782336435000,-500.0,0.00037904,60]
[426378270,1782336435000,-521.37739847,0.00037904,60]
[426378268,1782336435000,-500.0,0.00037904,60]
[426378266,1782336435000,-500.0,0.00037904,60]
[426378265,1782336435000,-500.0,0.00037904,60]
[426378254,1782336435000,-1005.0,0.00037411,14]
[426378264,1782336435000,-500.0,0.00037904,60]
[426378262,1782336435000,-500.0,0.00037904,60]
[426378260,1782336435000,-1005.0,0.00037411,14]
[426378261,1782336435000,-500.0,0.00037904,60]
[426378258,1782336435000,-1005.0,0.00037411,14]
[426378259,1782336435000,-1005.0,0.00037411,14]
[426378257,1782336435000,-1005.0,0.00037411,14]
[426378256,1782336435000,-1005.0,0.00037411,14]
[426378255,1782336435000,-1005.0,0.00037411,14]
[426378276,1782336435000,-1005.0,0.00039028,14]
[426378263,1782336435000,-500.0,0.00037904,60]
[426378275,1782336435000,-1005.0,0.00039028,14]
[426378280,1782336435000,-1005.0,0.00039028,14]
[426378279,1782336435000,-1005.0,0.00039028,14]
[426378301,1782336435000,-711.13931947,0.00040243,31]
[426378299,1782336435000,-711.13931947,0.00040243,31]
[426378278,1782336435000,-1005.0,0.00039028,14]
[426378297,1782336435000,-711.13931947,0.00040243,31]
[426378298,1782336435000,-711.13931947,0.00040243,31]
[426378296,1782336435000,-711.13931947,0.00040243,31]
[426378295,1782336435000,-711.13931947,0.00040243,31]
[426378294,1782336435000,-711.13931947,0.00040243,31]
[426378292,1782336435000,-829.19453428,0.00040199,12]
[426378293,1782336435000,-175.12445426,0.000402,120]
[426378291,1782336435000,-200.0,0.00040051,69]
[426378300,1782336435000,-711.13931947,0.00040243,31]
[426378289,1782336435000,-174.61,0.000398,120]
[426378290,1782336435000,-1244.00807194,0.00039961,3]
[426378281,1782336435000,-1005.0,0.00039028,14]
[426378282,1782336435000,-1005.0,0.00039028,14]
[426378283,1782336435000,-1005.0,0.00039028,14]
[426378277,1782336435000,-1005.0,0.00039028,14]
[426378284,1782336435000,-1005.0,0.00039028,14]
[426378286,1782336435000,-200.0,0.00039116,57]
[426378287,1782336435000,-174.61,0.000393,120]
[426378288,1782336435000,-189.52,0.00039646,14]
[426378285,1782336435000,-684.866283,0.00039048,2]
[426378311,1782336436000,-768.03046504,0.00040243,31]
[426378319,1782336436000,-17973.21334989,0.00040244,2]
[426378317,1782336436000,-768.03046504,0.00040243,31]
[426378316,1782336436000,-768.03046504,0.00040243,31]
[426378315,1782336436000,-768.03046504,0.00040243,31]
[426378314,1782336436000,-768.03046504,0.00040243,31]
[426378313,1782336436000,-768.03046504,0.00040243,31]
[426378312,1782336436000,-768.03046504,0.00040243,31]
[426378306,1782336436000,-711.13931947,0.00040243,31]
[426378309,1782336436000,-768.03046504,0.00040243,31]
[426378308,1782336436000,-768.03046504,0.00040243,31]
[426378307,1782336436000,-711.13931947,0.00040243,31]
[426378305,1782336436000,-711.13931947,0.00040243,31]
[426378304,1782336436000,-254.24389387,0.00040243,31]
[426378303,1782336436000,-711.13931947,0.00040243,31]
[426378302,1782336436000,-711.13931947,0.00040243,31]
[426378310,1782336436000,-768.03046504,0.00040243,31]
[426378320,1782336436000,-174.61,0.000403,120]
[426378318,1782336436000,-164.87444515,0.00040244,2]
[426378321,1782336436000,-151.0,0.000403,17]
[426378322,1782336436000,-151.0,0.000403,19]
[426378340,1782336436000,-487.0,0.00040344,2]
[426378338,1782336436000,-487.0,0.00040344,2]
[426378339,1782336436000,-487.0,0.00040344,2]
[426378336,1782336436000,-1000.0,0.00040343,2]
[426378334,1782336436000,-500.0,0.00040343,2]
[426378335,1782336436000,-500.0,0.00040343,60]
[426378333,1782336436000,-1008.92885946,0.00040343,2]
[426378331,1782336436000,-1000.0,0.00040343,2]
[426378337,1782336436000,-1000.0,0.00040343,2]
[426378329,1782336436000,-500.0,0.00040343,2]
[426378332,1782336436000,-1000.0,0.00040343,2]
[426378324,1782336436000,-151.0,0.000403,12]
[426378325,1782336436000,-72785.43558281,0.000403,30]
[426378326,1782336436000,-160.0,0.00040334,2]
[426378323,1782336436000,-151.0,0.000403,13]
[426378327,1782336436000,-500.0,0.00040343,60]
[426378330,1782336436000,-1000.0,0.00040343,2]
[426378328,1782336436000,-298.94,0.00040343,60]
[426378349,1782336437000,-500.0,0.00040443,2]
[426378341,1782336437000,-487.0,0.00040344,2]
[426378342,1782336437000,-847.77,0.00040344,2]
[426378344,1782336437000,-160.0,0.00040433,2]
[426378343,1782336437000,-1584.01,0.0004035,60]
[426378346,1782336437000,-150.0,0.00040443,2]
[426378347,1782336437000,-500.0,0.00040443,2]
[426378345,1782336437000,-160.0,0.00040433,2]
[426378348,1782336437000,-500.0,0.00040443,2]
[426378351,1782336437000,-500.0,0.00040443,2]
[426378350,1782336437000,-500.0,0.00040443,2]
[426378360,1782336437000,-155635.2709636,0.00040444,30]
[426378359,1782336437000,-7765.54930752,0.00040444,2]
[426378357,1782336437000,-509.81841186,0.00040443,2]
[426378355,1782336437000,-537.01976395,0.00040443,120]
[426378358,1782336437000,-500.0,0.00040443,60]
[426378353,1782336437000,-560.83793117,0.00040443,2]
[426378354,1782336437000,-1000.0,0.00040443,120]
[426378352,1782336437000,-500.0,0.00040443,2]
[426378356,1782336437000,-500.0,0.00040443,2]
[426378367,1782336460000,500.0,0.0002878,60]
[426378368,1782336477000,500.0,0.0002878,60]
[426378369,1782336481000,500.0,0.0002878,60]
[426378386,1782336554000,-197.70635144,0.0002868,2]
[426378387,1782336554000,-69.5120252,0.0002875,2]
[426378407,1782336568000,-160.0,0.0002875,2]
[426378406,1782336568000,-930.4879748,0.0002875,2]
[426378410,1782336568000,-234.8796844,0.000351,30]
[426378411,1782336568000,-78.73489218,0.00035167,2]
[426378409,1782336568000,-234.8796844,0.000351,30]
[426378408,1782336568000,-234.87968441,0.000351,30]
[426378413,1782336573000,-380.29406918,0.00035167,2]
[426378414,1782336575000,160.0,0.0002875,2]
[426378441,1782336597000,72.31852962,0.0002878,2]
[426378491,1782336632000,-433.45811007,0.0002878,2]
[426378496,1782336632000,-500.0,0.0002878,2]
[426378495,1782336632000,-486.34518872,0.0002878,2]
[426378502,1782336632000,-480.58430226,0.0002878,2]
[426378499,1782336632000,-19.41569774,0.0002878,2]
[426378493,1782336632000,-66.54188993,0.0002878,2]
[426378514,1782336632000,-480.5538189,0.00035167,2]
[426378508,1782336632000,-500.0,0.0002878,6]
[426378518,1782336632000,-268.22041322,0.00035198,2]
[426378520,1782336632000,-489.6041653,0.00035692,2]
[426378504,1782336632000,-202.5,0.0002878,2]
[426378510,1782336632000,-500.0,0.0002878,6]
[426378512,1782336632000,-87.68147038,0.0002878,2]
[426378516,1782336632000,-60.41721974,0.00035167,2]
[426378712,1782336638000,-155.21,0.000388,120]
[426378708,1782336638000,-260.3958347,0.00035692,2]
[426378710,1782336638000,-155.21,0.000383,120]
[426378720,1782336638000,-6060.74609042,0.00040344,28]
[426378714,1782336638000,-155.21,0.000393,120]
[426378718,1782336638000,-155.21,0.000403,120]
[426378716,1782336638000,-155.21,0.000398,120]
[426378722,1782336638000,-1700000.0,0.00040344,2]
[426378728,1782336638000,-1383983.52867879,0.00040344,2]
[426378726,1782336638000,-113036.03449074,0.00040344,2]
[426378732,1782336638000,-7283.04388557,0.00040344,2]
[426378730,1782336638000,-27884.11871836,0.00040344,2]
[426378724,1782336638000,-621616.92261111,0.00040344,2]
[426379299,1782336643000,-5500.22,0.00040344,2]
[426379273,1782336643000,-27170.84802497,0.00040344,2]
[426379271,1782336643000,-6777.95351753,0.00040344,2]
[426379266,1782336643000,-1700.44,0.00040344,2]
[426379259,1782336643000,-42906.54186472,0.00040344,2]
[426379262,1782336643000,-5118.45179301,0.00040344,2]
[426379307,1782336646000,-90530.20512424,0.00040344,2]
[426388812,1782336827000,500.12290617,0.00028797,60]
[426388838,1782336886000,279.79086608,0.0002726,30]
[426388840,1782336891000,279.79086606,0.0002726,30]
[426388852,1782336896000,279.79086606,0.0002726,30]
[426388905,1782336947000,500.0,0.00028797,60]
[426388911,1782336976000,160.0,0.00028797,30]
[426388912,1782336994000,500.0,0.00028797,60]
[426388915,1782337007000,500.0,0.00028797,30]
[426388917,1782337018000,500.0,0.00028986,60]
[426388925,1782337038000,500.0,0.00028986,60]
[426388928,1782337047000,500.0,0.00028986,60]
[426388936,1782337079000,500.0,0.00028986,60]
[426388937,1782337098000,500.0,0.00028986,60]
[426388939,1782337098000,500.0,0.00028986,60]
[426388940,1782337098000,500.0,0.00028986,60]
[426388938,1782337098000,500.0,0.00028986,60]
[426388942,1782337099000,500.0,0.00028986,60]
[426388941,1782337099000,500.0,0.00028986,60]
[426388945,1782337100000,500.0,0.00028986,60]
[426388944,1782337100000,500.0,0.00028986,60]
[426388943,1782337100000,500.0,0.00028986,60]
[426388948,1782337101000,500.0,0.00028986,60]
[426388947,1782337101000,500.0,0.00028986,60]
[426388946,1782337101000,500.0,0.00028986,60]
[426388950,1782337102000,500.0,0.00028986,60]
[426388949,1782337102000,500.0,0.00028986,60]
[426388952,1782337102000,500.0,0.00028986,60]
[426388951,1782337102000,500.0,0.00028986,60]
[426388955,1782337103000,500.0,0.00028986,60]
[426388954,1782337103000,500.0,0.00028986,60]
[426388953,1782337103000,500.0,0.00028986,60]
[426388956,1782337103000,500.0,0.00028986,60]
[426388958,1782337104000,170.89,0.00028986,60]
[426388957,1782337104000,500.0,0.00028986,60]
[426388963,1782337130000,500.0,0.00028986,60]
[426388964,1782337132000,505.0,0.00028986,60]
[426388965,1782337139000,500.0,0.00028986,60]
[426388966,1782337139000,500.0,0.00028986,60]
[426388968,1782337140000,500.0,0.00028986,60]
[426388967,1782337140000,500.0,0.00028986,60]
[426388971,1782337141000,500.0,0.00028986,60]
[426388970,1782337141000,500.0,0.00028986,60]
[426388969,1782337141000,500.0,0.00028986,60]
[426388974,1782337142000,500.0,0.00028986,60]
[426388973,1782337142000,500.0,0.00028986,60]
[426388972,1782337142000,500.0,0.00028986,60]
[426388975,1782337143000,500.0,0.00028986,60]
[426388977,1782337143000,500.0,0.00028986,60]
[426388976,1782337143000,500.0,0.00028986,60]
[426388979,1782337144000,501.11986973,0.00028986,60]
[426388978,1782337144000,500.0,0.00028986,60]
[426388987,1782337173000,412.18,0.00028986,60]
[426388998,1782337229000,500.0,0.00028986,60]
[426388997,1782337229000,500.0,0.00028986,60]
[426388996,1782337229000,500.0,0.00028986,60]
[426389004,1782337252000,167.87451965,0.0002726,30]
[426389006,1782337257000,167.87451963,0.0002726,30]
[426389056,1782337531000,500.19,0.00028997,60]
[426389069,1782337627000,500.0,0.00028888,60]
[426389091,1782337762000,-160.97575178,0.00024892,5]
[426389090,1782337762000,-160.97575178,0.00023987,5]
[426389094,1782337762000,-111.70078207,0.00028492,7]
[426389093,1782337762000,-156.2328304,0.00027933,7]
[426389092,1782337762000,-160.97575177,0.00025661,5]
[426389096,1782337774000,417.15472785,0.00028888,30]
[426389130,1782337832000,-500.0,0.00028888,7]
[426389132,1782337832000,-156.2328304,0.00030168,7]
[426389128,1782337832000,-44.53204833,0.00028492,7]
[426389131,1782337832000,-156.2328304,0.0002933,7]
[426389129,1782337832000,-500.0,0.00028888,7]
[426389135,1782337832000,-182.05891418,0.0003377,2]
[426389134,1782337832000,-235.67,0.000313,15]
[426389133,1782337832000,-156.23283043,0.00031285,7]
[426389136,1782337832000,-187.97764877,0.0003377,2]
[426389139,1782337832000,-492.62057381,0.00034233,2]
[426389137,1782337832000,-400.0,0.00034232,3]
[426389138,1782337832000,-552.24761953,0.00034233,2]
[426389370,1782337840000,-1000.0,0.00035166,2]
[426389369,1782337840000,-3630.1826661,0.00035051,2]
[426389366,1782337840000,-364.11782836,0.00034749,2]
[426389360,1782337840000,-7354.80233636,0.00034233,2]
[426389363,1782337840000,-375.95529754,0.00034749,2]
[426389359,1782337840000,-669.56444,0.00034233,2]
[426389418,1782337841000,-381.94854183,0.00036279,15]
[426389414,1782337841000,-500.0,0.00036279,15]
[426389411,1782337841000,-500.0,0.00036279,15]
[426389428,1782337841000,-500.0,0.00036279,15]
[426389412,1782337841000,-500.0,0.00036279,15]
[426389408,1782337841000,-500.0,0.00036279,15]
[426389404,1782337841000,-1000.0,0.00036125,2]
[426389406,1782337841000,-469.26497887,0.00036279,15]
[426389407,1782337841000,-500.0,0.00036279,15]
[426389419,1782337841000,-484.47348622,0.00036279,15]
[426389410,1782337841000,-155.70526643,0.00036279,15]
[426389413,1782337841000,-500.0,0.00036279,15]
[426389421,1782337841000,-498.40546094,0.00036279,15]
[426389423,1782337841000,-500.0,0.00036279,15]
[426389420,1782337841000,-500.0,0.00036279,15]
[426389371,1782337841000,-728.0179227,0.00035234,120]
[426389416,1782337841000,-500.0,0.00036279,15]
[426389422,1782337841000,-500.0,0.00036279,15]
[426389424,1782337841000,-500.0,0.00036279,15]
[426389425,1782337841000,-500.0,0.00036279,15]
[426389426,1782337841000,-500.0,0.00036279,15]
[426389430,1782337841000,-500.0,0.00036279,15]
[426389429,1782337841000,-500.0,0.00036279,15]
[426389431,1782337841000,-500.0,0.00036279,15]
[426389432,1782337841000,-500.0,0.00036279,15]
[426389409,1782337841000,-500.0,0.00036279,15]
[426389415,1782337841000,-500.0,0.00036279,15]
[426389403,1782337841000,-177.705034,0.00036041,2]
[426389373,1782337841000,-193.45517159,0.00035401,2]
[426389402,1782337841000,-153.63840429,0.00035836,2]
[426389374,1782337841000,-563.93294632,0.00035401,2]
[426389372,1782337841000,-1000.0,0.00035259,2]
[426389375,1782337841000,-546.17674253,0.00035401,2]
[426389377,1782337841000,-1000.0,0.00035596,2]
[426389378,1782337841000,-500.0,0.00035596,2]
[426389382,1782337841000,-315.54147405,0.00035646,2]
[426389381,1782337841000,-177.81326832,0.00035646,2]
[426389383,1782337841000,-179.47407302,0.00035646,2]
[426389380,1782337841000,-185.77746358,0.00035646,2]
[426389384,1782337841000,-293.48317611,0.00035646,2]
[426389379,1782337841000,-153.65665752,0.00035646,2]
[426389385,1782337841000,-150.03506724,0.00035646,2]
[426389401,1782337841000,-168.94985978,0.00035836,2]
[426389387,1782337841000,-180.39684421,0.00035646,2]
[426389388,1782337841000,-1000.0,0.00035692,2]
[426389390,1782337841000,-161.34875191,0.00035836,2]
[426389389,1782337841000,-186.47837653,0.00035836,2]
[426389391,1782337841000,-187.67199743,0.00035836,2]
[426389392,1782337841000,-386.91034319,0.00035836,2]
[426389393,1782337841000,-158.7276815,0.00035836,2]
[426389398,1782337841000,-163.32634665,0.00035836,2]
[426389395,1782337841000,-751.91059509,0.00035836,2]
[426389399,1782337841000,-177.85043188,0.00035836,2]
[426389396,1782337841000,-151.49389563,0.00035836,2]
[426389397,1782337841000,-343.99589973,0.00035836,2]
[426389400,1782337841000,-728.23565671,0.00035836,2]
[426389386,1782337841000,-203.96090415,0.00035646,2]
[426389427,1782337841000,-500.0,0.00036279,15]
[426389405,1782337841000,-1000.0,0.00036144,2]
[426389433,1782337841000,-500.0,0.00036279,15]
[426389466,1782337841000,-661.540865,0.00037327,2]